fUST/lending_fUST_20260206
["ID","MTS","AMOUNT","RATE_DAILY","PERIOD"]
[404591191,1770318167501,-500.0,0.00016867,2]
[404591192,1770318206345,500.0,0.00013273,2]
[404591195,1770318230298,210.0,0.00039695,120]
[404591197,1770318252031,5000.0,0.000135,2]
[404591201,1770318275015,5000.0,0.000135,2]
[404591203,1770318297563,2180.53546896,0.000135,2]
[404591204,1770318303773,500.0,0.00013273,2]
[404591205,1770318303907,-351.80162554,0.00013699,2]
[404591206,1770318303929,-309.37009823,0.00013699,2]
[404591207,1770318303954,-552.85532759,0.00013821,2]
[404591208,1770318303976,-1000.0,0.00013821,2]
[404591209,1770318303999,-473.53260077,0.00013821,2]
[404591210,1770318304027,-312.44034787,0.00015189,2]
[404591211,1770318307125,500.0,0.00013273,2]
[404591212,1770318344858,-623.29099864,0.00015189,2]
[404591213,1770318344881,-388.82,0.00015342,2]
[404591221,1770318493854,99405.91017887,0.00039693,30]
[404591222,1770318543659,500.0,0.00013273,2]
[404591224,1770318604864,237.63490441,0.00013273,2]
[404591246,1770318631687,-614.20020313,0.00013821,2]
[404591247,1770318631697,-214.20024106,0.00018262,2]
[404591336,1770318637793,-35.79975894,0.00018262,2]
[404591337,1770318637803,-1935.7111985,0.00021368,2]
[404591338,1770318637815,-926.88933376,0.00021368,2]
[404591340,1770318637848,-544.79095787,0.00021368,2]
[404591342,1770318637859,-1592.60850987,0.00021368,2]
[404591344,1770318637869,-1200.0,0.00021583,2]
[404591346,1770318637879,-5000.0,0.00021584,2]
[404591348,1770318637889,-416.14147437,0.00021802,2]
[404591350,1770318637898,-985.0,0.00023574,2]
[404591352,1770318637909,-475.59025642,0.00024618,2]
[404591354,1770318637918,-1000.0,0.00032639,30]
[404591356,1770318637927,-338.5428521,0.00034163,2]
[404591358,1770318637938,-988.55907766,0.00039597,11]
[404591360,1770318637951,-333.04458067,0.00039666,2]
[404591362,1770318637961,-3267.31,0.00039683,10]
[404591365,1770318637970,-2722.75,0.00039683,10]
[404591366,1770318637982,-2268.96,0.00039683,10]
[404591368,1770318637992,-500.0,0.00039691,15]
[404591370,1770318638001,-413.23904638,0.00039691,15]
[404591372,1770318638011,-500.0,0.00039691,15]
[404591374,1770318638021,-500.0,0.00039691,15]
[404591376,1770318638031,-500.0,0.00039691,15]
[404591378,1770318638041,-399.99,0.00039691,15]
[404591380,1770318638051,-500.0,0.00039691,15]
[404591381,1770318638060,-500.0,0.00039691,15]
[404591384,1770318638070,-500.0,0.00039691,15]
[404591385,1770318638080,-500.0,0.00039691,15]
[404591386,1770318638090,-500.0,0.00039691,15]
[404591388,1770318638100,-500.0,0.00039691,15]
[404591390,1770318638109,-500.0,0.00039691,15]
[404591392,1770318638119,-430.96939879,0.00039691,15]
[404591394,1770318638130,-500.0,0.00039691,15]
[404591396,1770318638140,-500.0,0.00039691,15]
[404591398,1770318638149,-500.0,0.00039691,15]
[404591400,1770318638159,-417.33361692,0.00039691,15]
[404591402,1770318638168,-500.0,0.00039691,15]
[404591404,1770318638177,-500.0,0.00039691,15]
[404591406,1770318638186,-500.0,0.00039691,15]
[404591408,1770318638195,-500.0,0.00039691,15]
[404591410,1770318638205,-500.0,0.00039691,15]
[404591412,1770318638214,-500.0,0.00039691,15]
[404591414,1770318638224,-495.86319597,0.00039692,15]
[404591416,1770318638232,-325.66326653,0.00039692,15]
[404591418,1770318638241,-324.14817966,0.00039692,15]
[404591420,1770318638250,-500.0,0.00039692,15]
[404591422,1770318638260,-250.0,0.00039693,10]
[404591424,1770318638270,-351.546189,0.00039693,10]
[404591426,1770318638280,-142972.22271287,0.00039693,30]
[404591607,1770318640219,-1890.8,0.00039683,10]
[404591609,1770318640229,-298523.96448817,0.00039693,30]
[404591611,1770318640240,-318.24227254,0.00039693,30]
[404591613,1770318640251,-7256.2938364,0.00039693,30]
[404592020,1770318644310,-210.99649674,0.000396,2]
[404592022,1770318644319,-12377.0744671,0.00039693,30]
[404592205,1770318646227,-9956.47177019,0.00039693,30]
[404592865,1770318663765,500.0,0.00013273,2]
[404592941,1770318903145,499.999999,0.0001556,120]
[404592945,1770318963742,391.14500463,0.00013273,2]
[404592948,1770319050935,5000.0,0.000135,2]
[404592949,1770319073089,424.8118606,0.000135,2]
[404592950,1770319087972,500.0,0.00013273,2]
[404592951,1770319138197,1589.7121304,0.000135,2]
[404592962,1770319210800,500.0,0.00013273,2]
[404592964,1770319301881,-158.30619502,0.00013699,2]
[404592965,1770319301908,-352.90196617,0.00013699,2]
[404592966,1770319301932,-501.01127403,0.00013699,2]
[404592967,1770319301957,-277.12604042,0.00013699,2]
[404592968,1770319301983,-515.39829676,0.00013699,2]
[404592969,1770319302008,-337.83295742,0.00013699,2]
[404592970,1770319302034,-438.16441978,0.00013699,2]
[404592971,1770319302064,-500.0,0.00013699,2]
[404592972,1770319302090,-500.0,0.00013699,2]
[404592973,1770319302116,-203.23,0.000137,2]
[404592974,1770319302145,-500.0,0.00013821,2]
[404592976,1770319397445,500.0,0.00013699,2]
[404592981,1770319520921,500.0,0.00013699,2]
[404592988,1770319803639,500.0,0.00013699,2]
[404593024,1770319831912,-166.27,0.000142,2]
[404593025,1770319831922,-158.37,0.000142,2]
[404593026,1770319831931,-150.0,0.00014212,2]
[404593027,1770319831940,-125.36,0.00016212,2]
[404593028,1770319831968,-51.64,0.00016212,2]
[404593029,1770319831978,-204.0,0.00018212,2]
[404593030,1770319831987,-231.0,0.00020212,2]
[404593031,1770319831996,-250.0,0.00021918,45]
[404593032,1770319832009,-258.0,0.00022212,2]
[404593034,1770319832019,-168.0,0.00023051,2]
[404593035,1770319832028,-168.0,0.00023194,2]
[404593037,1770319832037,-80.08508389,0.00023475,2]
[404593088,1770319837966,-87.91491611,0.00023475,2]
[404593089,1770319837975,-168.0,0.0002349,2]
[404593090,1770319837985,-168.0,0.00023716,2]
[404593091,1770319837994,-285.0,0.00024212,2]
[404593092,1770319838003,-168.0,0.00024323,2]
[404593093,1770319838017,-168.0,0.00024515,2]
[404593094,1770319838027,-168.0,0.00024575,2]
[404593095,1770319838036,-168.0,0.0002468,2]
[404593096,1770319838046,-168.0,0.00024698,2]
[404593097,1770319838056,-168.0,0.00024768,2]
[404593098,1770319838066,-168.0,0.0002488,2]
[404593099,1770319838076,-398.08143123,0.00025054,2]
[404593100,1770319838086,-168.0,0.00025076,2]
[404593101,1770319838095,-168.0,0.00025191,2]
[404593102,1770319838104,-168.0,0.00025454,2]
[404593103,1770319838114,-157.0,0.00027726,26]
[404593105,1770319838125,-500.0,0.00037599,2]
[404593107,1770319838134,-13118.17801949,0.000376,15]
[404593109,1770319838147,-4077.37118471,0.000376,15]
[404593111,1770319838157,-297.589,0.00038351,51]
[404593112,1770319838167,-2743.09093062,0.00039172,2]
[404593113,1770319838177,-2743.09093055,0.00039226,2]
[404593114,1770319838186,-250.0,0.00039272,2]
[404593115,1770319838195,-250.0,0.00039272,2]
[404593116,1770319838205,-250.0,0.00039272,2]
[404593117,1770319838215,-500.0,0.00039272,2]
[404593118,1770319838224,-500.0,0.00039272,2]
[404593119,1770319838234,-500.0,0.00039272,2]
[404593120,1770319838244,-1000.0,0.00039272,2]
[404593121,1770319838253,-2000.0,0.00039272,2]
[404593122,1770319838265,-500.0,0.00039272,2]
[404593123,1770319838275,-250.0,0.00039272,2]
[404593124,1770319838285,-1000.0,0.00039272,2]
[404593125,1770319838295,-1000.0,0.00039272,2]
[404593126,1770319838306,-250.0,0.00039272,2]
[404593127,1770319838317,-2000.0,0.00039272,2]
[404593128,1770319838327,-1000.0,0.00039272,2]
[404593129,1770319838336,-250.0,0.00039272,2]
[404593130,1770319838345,-2000.0,0.00039272,2]
[404593131,1770319838355,-1000.0,0.00039272,2]
[404593132,1770319838365,-250.0,0.00039272,2]
[404593133,1770319838375,-201.93286099,0.00039272,2]
[404593134,1770319838384,-2000.0,0.00039272,2]
[404593135,1770319838396,-250.0,0.00039272,2]
[404593136,1770319838405,-1000.0,0.00039272,2]
[404593137,1770319838415,-209.40437684,0.00039272,2]
[404593138,1770319838426,-2000.0,0.00039272,2]
[404593139,1770319838436,-1000.0,0.00039272,2]
[404593140,1770319838445,-250.0,0.00039272,2]
[404593141,1770319838455,-2000.0,0.00039272,2]
[404593142,1770319838464,-983.48831238,0.00039272,2]
[404593143,1770319838474,-250.0,0.00039272,2]
[404593144,1770319838483,-2000.0,0.00039272,2]
[404593145,1770319838493,-217.15233878,0.00039272,2]
[404593146,1770319838502,-294.71475661,0.00039272,2]
[404593147,1770319838515,-2000.0,0.00039272,2]
[404593148,1770319838524,-225.18697532,0.00039272,2]
[404593149,1770319838534,-2000.0,0.00039272,2]
[404593150,1770319838543,-233.51889341,0.00039272,2]
[404593151,1770319838552,-2000.0,0.00039272,2]
[404593152,1770319838562,-242.15909246,0.00039272,2]
[404593153,1770319838572,-2000.0,0.00039272,2]
[404593154,1770319838581,-251.11897888,0.00039272,2]
[404593155,1770319838590,-2000.0,0.00039272,2]
[404593156,1770319838600,-260.4103811,0.00039272,2]
[404593157,1770319838610,-2000.0,0.00039272,2]
[404593158,1770319838620,-270.0455652,0.00039272,2]
[404593159,1770319838630,-2000.0,0.00039272,2]
[404593160,1770319838639,-280.03725112,0.00039272,2]
[404593161,1770319838648,-2000.0,0.00039272,2]
[404593162,1770319838657,-290.39862941,0.00039272,2]
[404593163,1770319838666,-301.1433787,0.00039272,2]
[404593164,1770319838676,-2743.09093055,0.0003928,2]
[404593165,1770319838685,-3192.94601697,0.00039286,3]
[404593166,1770319838695,-620.39,0.00039286,3]
[404593167,1770319838704,-3300.81,0.00039286,10]
[404593168,1770319838715,-2750.67,0.00039286,10]
[404593169,1770319838725,-1064.31533899,0.0003929,3]
[404593170,1770319838735,-165994.06697238,0.00039296,2]
[404593171,1770319838745,-8048.92,0.000393,2]
[404593172,1770319838755,-167.63,0.000393,7]
[404593173,1770319838769,-2743.09093055,0.00039334,2]
[404593174,1770319838779,-2743.09093055,0.00039388,2]
[404593175,1770319838790,-381.7920178,0.00039393,2]
[404593176,1770319838800,-1543.2912653,0.00039393,2]
[404593177,1770319838810,-9866.3949942,0.00039393,2]
[404593178,1770319838820,-21151.0008573,0.00039393,2]
[404593179,1770319838830,-2743.09093055,0.00039442,2]
[404593180,1770319838840,-487.2050029,0.00039468,2]
[404593181,1770319838850,-1064.31533899,0.00039548,3]
[404593182,1770319838860,-10660.02388174,0.00039558,2]
[404593183,1770319838869,-1064.31533899,0.0003959,3]
[404593184,1770319838879,-38000.0,0.000396,15]
[404593185,1770319838888,-20355.19420563,0.000396,15]
[404593186,1770319838898,-160.925947,0.0003965,120]
[404593187,1770319838908,-160.925947,0.0003965,120]
[404593188,1770319838917,-1574651.11691201,0.0003965,30]
[404593189,1770319838930,-3089.7121304,0.0003965,30]
[404593242,1770319840228,-500.0,0.00037599,2]
[404593244,1770319840237,-500.0,0.00039295,2]
[404593246,1770319840247,-1000.04507,0.00039496,2]
[404593488,1770319958380,-249.47520406,0.00024864,2]
[404593489,1770319958406,-542.50479594,0.00024864,2]
[404593517,1770320434856,200.0,0.00027,120]
[404593535,1770320924846,-200.0,0.00021918,45]
[404593536,1770320924868,-150.0,0.0002589,2]
[404593537,1770320937271,150.0,0.0002589,2]
[404593540,1770321032137,-170.0,0.00027753,14]
[404593541,1770321032146,-177.0,0.0002789,2]
[404593542,1770321032155,-204.0,0.0002989,2]
[404593543,1770321032165,-231.0,0.0003189,2]
[404593544,1770321032174,-182.26419558,0.00032245,2]
[404593545,1770321032184,-183.3932103,0.0003389,120]
[404593546,1770321032194,-154.87,0.00036901,60]
[404593547,1770321032203,-154.87,0.00037001,60]
[404593548,1770321032213,-154.87,0.00037101,60]
[404593549,1770321032223,-154.87,0.00037201,60]
[404593550,1770321032232,-154.87,0.00037301,60]
[404593551,1770321032242,-154.87,0.00037401,60]
[404593552,1770321032251,-195.22,0.000375,2]
[404593553,1770321032261,-154.87,0.00037501,60]
[404593554,1770321032270,-168.0,0.00037535,2]
[404593555,1770321032279,-154.87,0.00037601,60]
[404593556,1770321032289,-154.87,0.00037701,60]
[404593557,1770321032298,-355.0,0.00037742,2]
[404593558,1770321032307,-154.87,0.00037801,60]
[404593559,1770321032317,-168.0,0.00037837,7]
[404593560,1770321032326,-168.0,0.00037856,2]
[404593561,1770321032336,-154.87,0.00037901,60]
[404593562,1770321032345,-168.0,0.00038,2]
[404593563,1770321032354,-154.87,0.00038001,60]
[404593564,1770321032364,-154.87,0.00038101,60]
[404593565,1770321032373,-168.0,0.00038156,2]
[404593566,1770321032382,-355.0,0.00038178,2]
[404593567,1770321032391,-154.87,0.00038201,60]
[404593568,1770321032402,-33.98214108,0.00038206,2]
[404593615,1770321038127,-134.01785892,0.00038206,2]
[404593616,1770321038138,-168.0,0.0003824,2]
[404593617,1770321038147,-154.87,0.00038301,60]
[404593618,1770321038157,-154.87,0.00038401,120]
[404593619,1770321038166,-154.87,0.00038501,120]
[404593620,1770321038176,-355.0,0.00038583,7]
[404593621,1770321038185,-1663.0,0.00038597,2]
[404593622,1770321038195,-154.87,0.00038601,120]
[404593623,1770321038204,-168.0,0.00038617,2]
[404593625,1770321038214,-154.87,0.00038701,120]
[404593627,1770321038224,-168.0,0.00038789,2]
[404593628,1770321038233,-154.87,0.00038801,120]
[404593629,1770321038242,-155.03830587,0.00038901,120]
[404593630,1770321038254,-168.0,0.00038919,2]
[404593631,1770321038264,-332.605589,0.00038943,60]
[404593632,1770321038273,-168.0,0.00039096,120]
[404593633,1770321038283,-189.67763642,0.00039272,2]
[404593634,1770321038293,-168.0,0.00039375,2]
[404593635,1770321038302,-168.0,0.00039379,2]
[404593636,1770321038312,-887.26105062,0.0003949,2]
[404593637,1770321038322,-887.26105058,0.00039497,2]
[404593638,1770321038331,-887.26105058,0.00039505,2]
[404593639,1770321038341,-887.26105058,0.00039512,2]
[404593640,1770321038350,-887.26105058,0.00039519,2]
[404593641,1770321038360,-887.26105058,0.00039526,2]
[404593642,1770321038370,-11009.93389508,0.00039542,2]
[404593643,1770321038379,-1219.9,0.00039581,10]
[404593644,1770321038389,-745.0207373,0.00039581,3]
[404593645,1770321038399,-38000.0,0.00039582,15]
[404593646,1770321038409,-1490.0414746,0.0003959,3]
[404593647,1770321038418,-38000.0,0.00039591,15]
[404593648,1770321038428,-365.4037522,0.00039594,2]
[404593649,1770321038438,-246.5296294,0.00039597,2]
[404593650,1770321038447,-238.071,0.00039597,55]
[404593651,1770321038458,-228.0202783,0.00039597,2]
[404593652,1770321038467,-8253.7983008,0.00039597,2]
[404593653,1770321038476,-328.8177467,0.00039597,2]
[404593654,1770321038486,-38000.0,0.000396,15]
[404593655,1770321038496,-38000.0,0.000396,15]
[404593656,1770321038508,-38000.0,0.000396,15]
[404593657,1770321038518,-151.0,0.000396,19]
[404593658,1770321038528,-413.18,0.000396,30]
[404593659,1770321038537,-187.887983,0.00039634,2]
[404593660,1770321038547,-151.0,0.00039641,120]
[404593661,1770321038557,-151.0,0.00039641,120]
[404593662,1770321038566,-151.0,0.00039641,120]
[404593663,1770321038575,-239.906896,0.00039641,120]
[404593664,1770321038585,-151.0,0.00039641,120]
[404593665,1770321038595,-151.0,0.00039641,120]
[404593666,1770321038605,-151.0,0.00039641,120]
[404593667,1770321038614,-151.0,0.00039641,120]
[404593668,1770321038624,-151.0,0.00039641,120]
[404593669,1770321038633,-1507689.10548985,0.00039641,30]
[404593670,1770321038675,-1937.20726558,0.00039641,30]
[404594058,1770321046552,-2892.013566,0.00037901,60]
[404594059,1770321046562,-887.26105058,0.00039534,2]
[404594060,1770321046571,-887.26105058,0.00039541,2]
[404594061,1770321046580,-2088.91,0.00039631,10]
[404594062,1770321046590,-2100.8471868,0.00039641,30]
[404594069,1770321084157,500.0,0.00013699,2]
[404594077,1770321143733,3553.84387572,0.0001401,2]
[404594092,1770321204755,500.0,0.00013699,2]
[404594093,1770321326862,500.0,0.00013699,2]
[404594094,1770321448595,424.21621103,0.00013699,2]
[404594151,1770322232432,-3329.47,0.00015342,2]
[404594153,1770322232441,-150.0,0.00016038,2]
[404594155,1770322232451,-177.0,0.00018038,2]
[404594157,1770322232460,-211.44754782,0.0002,2]
[404594158,1770322232470,-204.0,0.00020038,2]
[404594161,1770322232479,-208.43585868,0.00020272,2]
[404594163,1770322232491,-163.689523,0.00020272,2]
[404594165,1770322232500,-231.0,0.00022038,2]
[404594167,1770322232509,-258.0,0.00024038,2]
[404594169,1770322232519,-285.0,0.00026038,2]
[404594171,1770322232527,-143.97897948,0.00026848,2]
[404594173,1770322232539,-1056.02102052,0.00026848,2]
[404594175,1770322232549,-157.0,0.00027753,14]
[404594177,1770322232559,-298.03839473,0.00028038,2]
[404594179,1770322232569,-300.0,0.00029158,2]
[404594181,1770322232578,-300.0,0.00029158,2]
[404594183,1770322232588,-1680.0,0.00029159,2]
[404594185,1770322232597,-420.0,0.00031453,3]
[404594187,1770322232606,-420.0,0.00031453,3]
[404594189,1770322232615,-2262.0,0.00031668,3]
[404594191,1770322232624,-1000.0,0.00032919,30]
[404594193,1770322232633,-2643.2669083,0.00036359,2]
[404594195,1770322232644,-150.65,0.00036902,60]
[404594198,1770322232653,-154.19,0.00036902,60]
[404594201,1770322232664,-154.84,0.00036902,60]
[404594203,1770322232674,-150.65,0.00037002,60]
[404594206,1770322232684,-154.19,0.00037002,60]
[404594209,1770322232693,-154.84,0.00037002,60]
[404594211,1770322232703,-150.65,0.00037102,60]
[404594214,1770322232712,-154.19,0.00037102,60]
[404594217,1770322232721,-154.85,0.00037102,60]
[404594219,1770322232731,-150.65,0.00037202,60]
[404594222,1770322232740,-154.19,0.00037202,60]
[404594224,1770322232750,-150.65,0.00037302,60]
[404594227,1770322232759,-154.19,0.00037302,60]
[404594229,1770322232769,-150.65,0.00037402,60]
[404594231,1770322232779,-154.19,0.00037402,60]
[404594233,1770322232788,-150.65,0.00037502,60]
[404594235,1770322232798,-154.19,0.00037502,60]
[404594237,1770322232808,-150.65,0.00037602,60]
[404594239,1770322232818,-154.19,0.00037602,60]
[404594241,1770322232827,-150.65,0.00037702,60]
[404594243,1770322232836,-154.19,0.00037702,60]
[404594245,1770322232846,-150.65,0.00037802,60]
[404594247,1770322232855,-154.19,0.00037802,60]
[404594249,1770322232864,-4574.968263,0.00037812,60]
[404594251,1770322232874,-150.65,0.00037902,60]
[404594253,1770322232883,-154.19,0.00037902,60]
[404594255,1770322232892,-150.65,0.00038002,60]
[404594257,1770322232901,-154.19,0.00038002,60]
[404594259,1770322232911,-298.417708,0.00038062,60]
[404594261,1770322232920,-150.65,0.00038102,60]
[404594263,1770322232930,-154.19,0.00038102,60]
[404594265,1770322232939,-150.65,0.00038202,60]
[404594267,1770322232948,-154.19,0.00038202,60]
[404594269,1770322232958,-150.65,0.00038302,60]
[404594271,1770322232967,-154.19,0.00038302,60]
[404594273,1770322232976,-575.48,0.00038356,30]
[404594275,1770322232986,-150.65,0.00038402,120]
[404594277,1770322232996,-154.19,0.00038402,120]
[404594279,1770322233004,-150.65,0.00038502,120]
[404594281,1770322233013,-154.19,0.00038502,120]
[404594283,1770322233023,-419.21882308,0.0003857,2]
[404594285,1770322233032,-117.23380925,0.00038602,120]
[404594287,1770322233051,-33.41619075,0.00038602,120]
[404594290,1770322233061,-154.19,0.00038602,120]
[404594291,1770322233070,-315.68120925,0.0003869,30]
[404594294,1770322233082,-184.31879075,0.0003869,30]
[404594296,1770322233091,-150.65,0.00038702,120]
[404594298,1770322233100,-154.19,0.00038702,120]
[404594300,1770322233111,-150.65,0.00038802,120]
[404594302,1770322233120,-154.19,0.00038802,120]
[404594303,1770322233129,-150.65,0.00038902,120]
[404594305,1770322233139,-154.19,0.00038902,120]
[404594307,1770322233149,-647.49110905,0.00038904,30]
[404594310,1770322233162,-152.50889095,0.00038904,30]
[404594312,1770322233172,-150.65,0.00039002,120]
[404594314,1770322233182,-154.19,0.00039002,120]
[404594316,1770322233191,-375.03430642,0.00039089,15]
[404594318,1770322233201,-437.70783547,0.00039089,15]
[404594320,1770322233210,-500.0,0.00039089,7]
[404594322,1770322233221,-500.0,0.00039089,7]
[404594324,1770322233229,-500.0,0.00039089,7]
[404594325,1770322233239,-601.5,0.00039089,7]
[404594327,1770322233248,-251.80247719,0.0003909,30]
[404594354,1770322238440,-248.19752281,0.0003909,30]
[404594355,1770322238450,-150.65,0.00039102,120]
[404594356,1770322238460,-154.19,0.00039102,120]
[404594357,1770322238470,-150.65,0.00039202,120]
[404594358,1770322238480,-154.19,0.00039202,120]
[404594359,1770322238490,-500.0,0.0003929,30]
[404594360,1770322238500,-150.65,0.00039302,120]
[404594361,1770322238510,-154.21586688,0.00039302,120]
[404594362,1770322238520,-200.33808335,0.00039322,2]
[404594363,1770322238530,-150.65,0.00039402,120]
[404594364,1770322238539,-190.457,0.00039416,54]
[404594365,1770322238550,-800.0,0.00039452,30]
[404594366,1770322238560,-800.0,0.00039489,7]
[404594367,1770322238570,-150.65,0.00039502,120]
[404594368,1770322238580,-500.0,0.00039541,120]
[404594370,1770322238590,-9908.94050559,0.00039541,2]
[404594371,1770322238600,-887.0533744,0.0003959,3]
[404594372,1770322238611,-1871.06,0.0003959,10]
[404594373,1770322238621,-500.0,0.00039599,2]
[404594374,1770322238631,-17890.8537029,0.000396,15]
[404594375,1770322238939,-7283.04388557,0.000396,15]
[404594376,1770322238957,-12826.10241153,0.000396,15]
[404594377,1770322238967,-38000.0,0.000396,15]
[404594378,1770322238977,-150.65,0.00039602,120]
[404594379,1770322238987,-887.0533744,0.00039621,3]
[404594380,1770322238996,-4242.8496731,0.00039631,2]
[404594381,1770322239006,-4534.8373053,0.00039631,2]
[404594382,1770322239016,-739.5888883,0.00039631,2]
[404594383,1770322239026,-509.6548448,0.00039631,2]
[404594384,1770322239036,-11329.0317244,0.00039631,2]
[404594385,1770322239049,-27175.3498853,0.00039631,2]
[404594386,1770322239059,-233.5,0.00039637,7]
[404594387,1770322239069,-1894129.91607139,0.00039638,30]
[404594835,1770322245115,-841.80349776,0.00039628,10]
[404594841,1770322245967,-325.715,0.00039628,10]
[404594884,1770322246778,-391.70150224,0.00039628,10]
[404594885,1770322246788,-1180.22645953,0.00039638,30]
[404594886,1770322246946,-13050.82014615,0.00039638,30]
[404594887,1770322246957,-1147.70619972,0.00039638,30]
[404594888,1770322247002,-781.85,0.00039638,30]
[404594889,1770322277189,500.0,0.00013273,2]
[404594890,1770322277248,1000.0,0.00013821,2]
[404594899,1770322516470,500.0,0.00013273,2]
[404594900,1770322524081,500.0,0.00013273,2]
[404594904,1770322834917,200.0,0.00027,120]
[404594918,1770323286666,301.61574,0.00013273,2]
[404594922,1770323343021,602.29406516,0.00013273,2]
[404594923,1770323343273,470.00288937,0.00013273,2]
[404594928,1770323358831,4638.38744133,0.0001401,2]
[404594929,1770323402962,156.48,0.0001,2]
[404594930,1770323403267,156.48,0.00013,2]
[404594960,1770323431587,-1200.0,0.00014279,2]
[404594961,1770323431596,-1024.20858867,0.0001428,2]
[404594962,1770323431646,-3975.79141133,0.0001428,2]
[404594963,1770323431657,-624.0,0.0001428,2]
[404594964,1770323431667,-5000.0,0.00014424,2]
[404594965,1770323431677,-300.0,0.00014863,2]
[404594966,1770323431686,-300.0,0.00014864,2]
[404594967,1770323431695,-300.0,0.00014864,2]
[404594968,1770323431709,-300.0,0.00014864,2]
[404594970,1770323431719,-300.0,0.00014864,2]
[404594972,1770323431728,-150.0,0.00015092,2]
[404594973,1770323431738,-1271.54,0.00015559,2]
[404594974,1770323431747,-650.02727789,0.00015559,2]
[404594975,1770323431756,-1680.0,0.00015707,2]
[404594976,1770323431766,-420.0,0.0001627,2]
[404594977,1770323431776,-327.0,0.0001627,2]
[404594978,1770323431786,-300.0,0.0001627,2]
[404594979,1770323431795,-420.0,0.0001627,2]
[404594980,1770323431805,-150.40630044,0.00016438,2]
[404594981,1770323431814,-1030.322026,0.00016482,2]
[404594982,1770323431824,-177.0,0.00017092,2]
[404594983,1770323431833,-160.3,0.00017182,2]
[404594984,1770323431843,-720.0,0.00017278,2]
[404594985,1770323431853,-180.0,0.00017809,2]
[404594986,1770323431863,-587.0,0.00017809,2]
[404594987,1770323431872,-204.0,0.00019092,2]
[404594988,1770323431881,-823.0,0.00019494,2]
[404594989,1770323431891,-231.0,0.00021092,2]
[404594990,1770323431900,-389.74702587,0.00021581,2]
[404594991,1770323431910,-500.0,0.00021581,2]
[404594992,1770323431919,-500.0,0.00021581,2]
[404594993,1770323431928,-500.0,0.00021581,2]
[404594994,1770323431938,-500.0,0.00021581,2]
[404594995,1770323431951,-500.0,0.00021581,2]
[404594996,1770323431960,-500.0,0.00021581,2]
[404594997,1770323431969,-500.0,0.00021581,2]
[404594998,1770323431979,-300.0,0.00021581,2]
[404594999,1770323431988,-500.0,0.00021581,2]
[404595000,1770323431997,-560.99870191,0.00021581,2]
[404595001,1770323432008,-500.0,0.00021581,2]
[404595002,1770323432018,-500.0,0.00021581,2]
[404595003,1770323432028,-156.35625766,0.00021581,2]
[404595004,1770323432038,-413.23904638,0.00021581,2]
[404595005,1770323432048,-233.5,0.00021581,2]
[404595006,1770323432057,-86.4195716,0.00021581,2]
[404595007,1770323432069,-413.5804284,0.00021581,2]
[404595008,1770323432079,-500.0,0.00021581,2]
[404595009,1770323432088,-500.0,0.00021581,2]
[404595010,1770323432098,-500.0,0.00021581,2]
[404595011,1770323432107,-500.0,0.00021581,2]
[404595012,1770323432117,-500.0,0.00021581,2]
[404595013,1770323432126,-500.0,0.00021581,2]
[404595014,1770323432135,-417.33361692,0.00021581,2]
[404595015,1770323432144,-500.0,0.00021581,2]